lending/lending_fUSD_20251116
["ID","MTS","AMOUNT","RATE_DAILY","PERIOD"]
[394155035,1763329841064,-1208.76,0.00040712,2]
[394155036,1763329841073,-150.0,0.00040712,2]
[394155037,1763329841083,-150.0,0.00040712,2]
[394155038,1763329841091,-1208.76,0.00040712,2]
[394155039,1763329841100,-169.42,0.00040712,2]
[394155040,1763329841110,-169.42,0.00040712,2]
[394155041,1763329841119,-150.0,0.00040712,2]
[394155042,1763329841129,-611.24,0.00040712,2]
[394155043,1763329841138,-1208.76,0.00040712,2]
[394155044,1763329841147,-550.22,0.00040712,2]
[394155045,1763329841156,-1208.76,0.00040712,2]
[394155046,1763329841166,-169.42,0.00040712,2]
[394155047,1763329841175,-150.0,0.00040712,2]
[394155048,1763329841184,-550.22,0.00040712,2]
[394155049,1763329841194,-1206.42,0.00040712,2]
[394155050,1763329841203,-169.42,0.00040712,2]
[394155051,1763329841212,-150.0,0.00040712,2]
[394155052,1763329841222,-550.22,0.00040712,2]
[394155053,1763329841231,-169.42,0.00040712,2]
[394155054,1763329841240,-150.0,0.00040712,2]
[394155055,1763329841250,-550.22,0.00040712,2]
[394155056,1763329841260,-169.42,0.00040712,2]
[394155057,1763329841269,-150.0,0.00040712,2]
[394155058,1763329841278,-150.0,0.00040712,2]
[394155059,1763329841287,-150.0,0.00040712,2]
[394155060,1763329841297,-175.42,0.00040713,14]
[394155061,1763329841306,-300.0,0.00040719,2]
[394155062,1763329841315,-699.44,0.0004073,30]
[394155063,1763329841325,-170.25,0.00040731,14]
[394155064,1763329841334,-291.93441405,0.00040736,7]
[394155065,1763329841343,-300.0,0.00040737,2]
[394155066,1763329841353,-177.32,0.00040744,2]
[394155067,1763329841362,-177.32,0.00040744,2]
[394155068,1763329841371,-177.32,0.00040744,2]
[394155069,1763329841380,-177.32,0.00040744,2]
[394155070,1763329841389,-177.32,0.00040744,2]
[394155071,1763329841399,-177.32,0.00040744,2]
[394155072,1763329841409,-177.32,0.00040744,2]
[394155073,1763329841419,-177.32,0.00040744,2]
[394155074,1763329841429,-500.0,0.00040755,30]
[394155075,1763329841438,-150.0,0.00040756,7]
[394155076,1763329841448,-300.0,0.0004076,2]
[394155077,1763329841457,-301.7,0.00040764,2]
[394155078,1763329841467,-271.96,0.00040764,2]
[394155079,1763329841476,-150.0,0.00040764,2]
[394155080,1763329841485,-150.0,0.00040764,2]
[394155081,1763329841495,-500.0,0.0004077,30]
[394155082,1763329841505,-172.90405704,0.00040774,15]
[394155083,1763329841515,-150.0,0.00040788,7]
[394155084,1763329841524,-300.0,0.00040788,2]
[394155085,1763329841534,-300.0,0.00040806,2]
[394155086,1763329841544,-500.0,0.0004081,30]
[394155087,1763329841553,-300.0,0.00040813,2]
[394155088,1763329841563,-300.0,0.00040823,2]
[394155089,1763329841573,-500.0,0.00040828,30]
[394155090,1763329841582,-300.0,0.00040842,2]
[394155091,1763329841592,-300.0,0.00040848,2]
[394155092,1763329841602,-172.90405704,0.00040855,15]
[394155093,1763329841611,-350.0,0.00040868,5]
[394155094,1763329841621,-300.0,0.00040873,2]
[394155095,1763329841631,-300.0,0.00040876,2]
[394155096,1763329841640,-300.0,0.00040879,2]
[394155097,1763329841650,-450.23261,0.00040888,30]
[394155098,1763329841659,-608.15,0.000409,30]
[394155099,1763329841668,-31273.9265839,0.00040901,4]
[394155100,1763329841678,-300.0,0.00040903,2]
[394155101,1763329841688,-300.0,0.00040906,2]
[394155102,1763329841697,-300.0,0.00040911,2]
[394155103,1763329841707,-300.0,0.00040914,2]
[394155104,1763329841716,-300.0,0.00040914,2]
[394155105,1763329841726,-300.0,0.00040914,2]
[394155106,1763329841735,-962.159,0.00040917,59]
[394155107,1763329841745,-152.0,0.00040924,5]
[394155108,1763329841755,-300.0,0.00040926,2]
[394155109,1763329841764,-172.90405704,0.00040936,15]
[394155110,1763329841773,-300.0,0.00040953,2]
[394155111,1763329841782,-300.0,0.00040959,2]
[394155112,1763329841793,-300.0,0.0004096,2]
[394155113,1763329841805,-300.0,0.00040964,2]
[394155114,1763329841815,-300.0,0.00040985,2]
[394155115,1763329841824,-300.0,0.00040991,2]
[394155116,1763329841834,-300.0,0.00040992,2]
[394155117,1763329841844,-150.0,0.00040997,41]
[394155118,1763329841853,-300.0,0.00040998,2]
[394155119,1763329841863,-166.0,0.00041,30]
[394155120,1763329841875,-4000.00000001,0.00041,2]
[394155121,1763329841884,-150.0,0.00041,60]
[394155122,1763329841893,-300.0,0.00041,2]
[394155123,1763329841903,-379.0,0.00041,90]
[394155124,1763329841913,-1008.17409429,0.00041,30]
[394155125,1763329841923,-166.0,0.00041,2]
[394155126,1763329841932,-300.0,0.00041005,2]
[394155127,1763329841942,-300.0,0.00041009,2]
[394155128,1763329841951,-300.0,0.0004101,2]
[394155129,1763329841960,-500.0,0.0004101,30]
[394155130,1763329841969,-172.90405704,0.00041016,15]
[394155131,1763329841979,-300.0,0.00041027,2]
[394155132,1763329841989,-300.0,0.00041028,2]
[394155133,1763329841998,-300.0,0.00041042,2]
[394155134,1763329842008,-500.0,0.00041042,30]
[394155135,1763329842018,-300.0,0.00041043,2]
[394155136,1763329842028,-300.0,0.00041048,2]
[394155137,1763329842037,-300.0,0.00041052,2]
[394155138,1763329842046,-300.0,0.00041053,2]
[394155139,1763329842058,-300.0,0.00041058,2]
[394155140,1763329842067,-300.0,0.00041061,2]
[394155141,1763329842077,-300.0,0.00041068,2]
[394155142,1763329842087,-300.0,0.00041069,2]
[394155143,1763329842096,-450.23261,0.00041088,30]
[394155144,1763329842106,-500.0,0.00041096,120]
[394155145,1763329842115,-1000.0,0.00041096,14]
[394155146,1763329842125,-172.90405704,0.00041097,15]
[394155147,1763329842134,-500.0,0.000411,2]
[394155148,1763329842143,-300.0,0.00041105,2]
[394155149,1763329842153,-300.0,0.0004111,2]
[394155150,1763329842162,-300.0,0.0004111,2]
[394155151,1763329842171,-300.0,0.00041118,2]
[394155152,1763329842181,-154.86,0.00041119,14]
[394155153,1763329842191,-300.0,0.00041126,2]
[394155154,1763329842200,-300.0,0.00041139,2]
[394155155,1763329842210,-300.0,0.00041145,2]
[394155156,1763329842220,-300.0,0.00041152,2]
[394155157,1763329842230,-150.0,0.00041166,6]
[394155158,1763329842240,-172.90405704,0.00041178,15]
[394155159,1763329842249,-500.0,0.00041179,30]
[394155160,1763329842259,-300.0,0.0004118,2]
[394155161,1763329842269,-150.0,0.00041192,14]
[394155162,1763329842279,-150.0,0.00041194,60]
[394155163,1763329842288,-150.0,0.00041194,60]
[394155164,1763329842298,-150.0,0.00041203,60]
[394155165,1763329842307,-300.0,0.00041207,2]
[394155166,1763329842317,-300.0,0.00041213,2]
[394155167,1763329842326,-172.79928841,0.00041215,2]
[394155168,1763329842336,-300.0,0.00041219,2]
[394155169,1763329842346,-658.15142435,0.00041221,10]
[394155170,1763329842355,-1000.0,0.00041221,10]
[394155171,1763329842364,-1000.0,0.00041221,10]
[394155172,1763329842375,-500.0,0.00041227,30]
[394155173,1763329842385,-300.0,0.00041227,2]
[394155174,1763329842394,-309.91624966,0.00041238,105]
[394155175,1763329842405,-300.0,0.0004124,2]
[394155176,1763329842414,-300.0,0.00041244,2]
[394155178,1763329842424,-300.0,0.00041249,2]
[394155180,1763329842435,-500.0,0.00041251,30]
[394155182,1763329842444,-172.90405704,0.00041259,15]
[394155183,1763329842454,-300.0,0.0004126,2]
[394155184,1763329842463,-300.0,0.00041268,2]
[394155185,1763329842473,-150.0,0.00041273,14]
[394155186,1763329842483,-300.0,0.0004128,2]
[394155187,1763329842493,-500.0,0.00041281,30]
[394155188,1763329842503,-300.0,0.00041285,2]
[394155189,1763329842513,-450.23261,0.00041288,30]
[394155190,1763329842523,-150.0,0.00041308,17]
[394155191,1763329842534,-300.0,0.00041315,2]
[394155192,1763329842543,-300.0,0.00041315,2]
[394155193,1763329842553,-300.0,0.00041315,2]
[394155194,1763329842562,-300.0,0.00041317,2]
[394155195,1763329842573,-150.0,0.00041318,105]
[394155196,1763329842583,-300.0,0.0004132,2]
[394155197,1763329842593,-1680.57406,0.0004132,8]
[394155198,1763329842602,-817.63995786,0.00041328,3]
[394155199,1763329842612,-31273.9265839,0.0004133,4]
[394155200,1763329842622,-250.0,0.00041333,30]
[394155202,1763329842633,-249.82,0.00041333,60]
[394155204,1763329842643,-150.0,0.00041336,28]
[394155207,1763329842652,-150.0,0.00041339,3]
[394155209,1763329842662,-150.0,0.00041339,15]
[394155211,1763329842672,-150.0,0.00041339,8]
[394155213,1763329842683,-10113.0,0.0004134,7]
[394155214,1763329842693,-817.63995782,0.0004134,3]
[394155215,1763329842702,-165.87617165,0.0004134,15]
[394155217,1763329842712,-1278.95270493,0.0004134,15]
[394155219,1763329842721,-154.2097217,0.0004134,8]
[394155221,1763329842731,-214.0,0.0004134,7]
[394155222,1763329842741,-300.0,0.00041349,2]
[394155224,1763329842750,-817.63995782,0.00041352,3]
[394155225,1763329842759,-300.0,0.00041358,2]
[394155226,1763329842768,-817.63995782,0.00041364,3]
[394155227,1763329842778,-150.0,0.00041369,90]
[394155228,1763329842788,-500.0,0.0004137,120]
[394155229,1763329842800,-379.0,0.0004137,90]
[394155230,1763329842810,-1000.0,0.0004137,14]
[394155231,1763329842820,-300.0,0.0004137,2]
[394155232,1763329842831,-150.0,0.0004137,10]
[394155233,1763329842840,-300.0,0.00041371,2]
[394155234,1763329842850,-150.0,0.00041371,5]
[394155235,1763329842858,-817.63995782,0.00041376,3]
[394155236,1763329842867,-300.0,0.00041386,2]
[394155237,1763329842876,-817.63995782,0.00041388,3]
[394155238,1763329842886,-150.0,0.00041399,29]
[394155239,1763329842896,-150.0,0.00041399,42]
[394155240,1763329842905,-150.0,0.00041399,21]
[394155241,1763329842914,-216.1,0.000414,29]
[394155242,1763329842924,-216.1,0.000414,29]
[394155243,1763329842933,-150.0,0.000414,42]
[394155244,1763329842943,-817.63995782,0.000414,3]
[394155245,1763329842953,-300.0,0.000414,2]
[394155246,1763329842962,-1000.0,0.000414,7]
[394155247,1763329842972,-262.108482,0.000414,21]
[394155248,1763329842982,-154.2097217,0.00041401,8]
[394155249,1763329842992,-31273.9265839,0.00041406,4]
[394155250,1763329843002,-23949.4818391,0.00041406,4]
[394155251,1763329843011,-150.0,0.0004141,14]
[394155252,1763329843021,-150.0,0.0004141,14]
[394155253,1763329843031,-300.0,0.00041413,2]
[394155254,1763329843041,-300.0,0.00041416,2]
[394155255,1763329843051,-93821.7797516,0.00041416,4]
[394155256,1763329843061,-71848.4455174,0.00041416,4]
[394155257,1763329843071,-400.0,0.00041416,10]
[394155258,1763329843080,-150.0,0.00041417,45]
[394155259,1763329843090,-23949.4818391,0.00041418,4]
[394155260,1763329843100,-300.0,0.00041419,2]
[394155261,1763329843109,-150.0,0.00041419,120]
[394155262,1763329843119,-187643.559503,0.0004142,4]
[394155263,1763329843128,-191595.854713,0.0004142,4]
[394155264,1763329843138,-300.0,0.00041424,2]
[394155265,1763329843147,-4810.6223569,0.00041426,2]
[394155266,1763329843156,-151769.960232,0.00041426,2]
[394155267,1763329843166,-5787.9106507,0.00041426,2]
[394155268,1763329843175,-150.0,0.00041426,13]
[394155269,1763329843185,-151.0,0.00041428,4]
[394155270,1763329843195,-156.587,0.00041428,4]
[394155271,1763329843204,-256.00109441,0.00041428,4]
[394155272,1763329843214,-200.0,0.00041428,4]
[394155274,1763329843223,-200.0,0.00041428,4]
[394155275,1763329843233,-200.0,0.00041428,4]
[394155276,1763329843243,-1000.0,0.00041428,30]
[394155277,1763329843252,-1000.0,0.00041428,30]
[394155278,1763329843262,-1000.0,0.00041428,30]
[394155279,1763329843272,-1000.0,0.00041428,30]
[394155280,1763329843281,-284.116,0.00041428,30]
[394155281,1763329843291,-150.0,0.00041428,4]
[394155282,1763329843300,-1000.0,0.00041429,90]
[394155283,1763329843310,-1000.0,0.00041429,90]
[394155284,1763329843319,-1000.0,0.00041429,90]
[394155285,1763329843329,-1000.0,0.00041429,90]
[394155286,1763329843339,-1000.0,0.00041429,90]
[394155287,1763329843347,-1000.0,0.00041429,90]
[394155289,1763329843356,-150.0,0.00041429,4]
[394155290,1763329843366,-150.0,0.00041429,4]
[394155291,1763329843375,-150.0,0.00041429,4]
[394155292,1763329843384,-150.0,0.00041429,4]
[394155293,1763329843394,-150.0,0.00041429,20]
[394155294,1763329843403,-150.0,0.00041429,4]
[394155295,1763329843555,-150.0,0.00041429,4]
[394155296,1763329843565,-500.0,0.00041429,2]
[394155297,1763329843575,-653.0,0.00041429,4]
[394155298,1763329843584,-500.0,0.00041429,4]
[394155299,1763329843594,-448.0,0.00041429,4]
[394155300,1763329843603,-150.0,0.00041429,4]
[394155301,1763329843613,-150.0,0.00041429,4]
[394155302,1763329843623,-150.0,0.00041429,2]
[394155303,1763329843633,-187643.559503,0.0004143,4]
[394155304,1763329843642,-202515.19975886,0.0004143,4]
[394155305,1763329843959,-373.57020428,0.0004143,4]
[394155306,1763329843971,-708.18114371,0.0004143,4]
[394155307,1763329843982,-1428.29967162,0.0004143,4]
[394155308,1763329843993,-375.66,0.0004143,4]
[394155309,1763329844004,-795.02073269,0.0004143,4]
[394155310,1763329844090,-1003.02,0.00034542,2]
[394155311,1763329844100,-172.90405704,0.0004134,15]
[394155312,1763329844109,-93230.92469444,0.0004143,4]
[394155313,1763329844120,-1373.63138351,0.0004143,4]
[394155314,1763329844132,-675.3658925,0.0004143,4]
[394155315,1763329844143,-2858.27391465,0.0004143,4]
[394155316,1763329844158,-2374.175,0.0004143,4]
[394155317,1763329844254,-1773.36298609,0.00019239,2]
[394155318,1763329844265,-47672.0,0.00019239,2]
[394155319,1763329844276,-2192.66007402,0.00019239,2]
[394155320,1763329844287,-3952.7983,0.00019239,2]
[394155321,1763329844298,-3839.24112743,0.00019239,2]
[394155322,1763329844309,-270.76163892,0.00019239,2]
[394155348,1763329845570,-39445.77,0.00019239,2]
[394155351,1763329845905,-738.4500015,0.00019239,2]
[394155352,1763329845917,-938.79,0.00019239,2]
[394155357,1763329862140,300.0,0.00021163,119]
[394155359,1763330041318,1500.0,0.00029322,120]
[394155361,1763330145688,513.02,0.00012187,2]
[394155362,1763330145892,513.02,0.00012829,2]
[394155363,1763330146102,513.02,0.0001347,2]
[394155364,1763330146314,513.02,0.00014111,2]
[394155365,1763330146545,513.02,0.00014753,2]
[394155366,1763330146739,513.02,0.00015394,2]
[394155367,1763330146943,513.02,0.00016036,2]
[394155369,1763330294063,-513.02,0.00016677,2]
[394155370,1763330345478,-300.0,0.00016758,2]
[394155371,1763330410876,-250.0,0.00016839,2]
[394155372,1763330410899,-250.0,0.00017,2]
[394155373,1763330493950,160.16,0.00015158,2]
[394155375,1763330802384,548.0,0.00013699,2]
[394155383,1763330838589,-250.0,0.00017179,2]
[394155384,1763330838615,-300.0,0.00017214,2]
[394155385,1763330838638,-300.0,0.00017249,2]
[394155386,1763330838662,-513.02,0.00017318,2]
[394155387,1763330838686,-418.929716,0.0001764,2]
[394155388,1763330838709,-210.14696638,0.0001786,2]
[394155389,1763330838730,-160.0,0.0001788,2]
[394155390,1763330838752,-513.02,0.0001796,2]
[394155399,1763331005359,150.0,0.00019092,120]
[394155410,1763331031773,-300.0,0.00018259,2]
[394155411,1763331031783,-197.76627144,0.00018259,2]
[394155412,1763331031839,-102.23372856,0.00018259,2]
[394155413,1763331031849,-500.46624403,0.00018259,2]
[394155414,1763331031861,-699.53375597,0.00018259,2]
[394155415,1763331031870,-1200.0,0.0001826,2]
[394155416,1763331031880,-7877.29438791,0.00018261,2]
[394155417,1763331031890,-999.0,0.00018281,3]
[394155418,1763331031899,-1000.0,0.000186,2]
[394155419,1763331031910,-540.61,0.00018601,2]
[394155420,1763331031919,-329.65,0.00018601,2]
[394155421,1763331031929,-150.99,0.00018601,2]
[394155422,1763331031938,-1092.45,0.00018601,2]
[394155423,1763331031947,-150.99,0.00018601,2]
[394155424,1763331031956,-9999.99,0.00018601,2]
[394155425,1763331031966,-9999.99,0.00018601,2]
[394155426,1763331031975,-34573.95,0.00018601,2]
[394155427,1763331031987,-999.99,0.00018601,2]
[394155428,1763331031996,-513.02,0.00018601,2]
[394155429,1763331032006,-4838.09,0.00018745,2]
[394155430,1763331032016,-345.18,0.00018745,2]
[394155431,1763331032025,-9215.03,0.00018745,5]
[394155432,1763331032034,-9475.39,0.00018745,2]
[394155433,1763331032044,-3868.08,0.00018745,2]
[394155434,1763331032053,-931.7,0.00018745,2]
[394155435,1763331032062,-540.61,0.00018875,2]
[394155436,1763331032071,-300.0,0.00018897,2]
[394155438,1763331032084,-150.5502156,0.00018897,2]
[394155440,1763331032094,-1071.42770396,0.00018897,2]
[394155442,1763331032103,-195.0,0.00018897,2]
[394155444,1763331032113,-300.0,0.00018897,2]
[394155446,1763331032122,-250.0,0.00018897,2]
[394155448,1763331032132,-46198.3939,0.00018977,2]
[394155450,1763331032141,-300.0,0.00019,2]
[394155452,1763331032152,-1151.0574345,0.00019039,2]
[394155453,1763331032163,-3975.59,0.00019077,2]
[394155455,1763331032172,-150.0,0.00019092,2]
[394155457,1763331032182,-473.736,0.00019139,2]
[394155459,1763331032191,-2500.0,0.00019139,2]
[394155461,1763331032201,-540.61,0.00019149,2]
[394155463,1763331032210,-151.0,0.00019228,2]
[394155465,1763331032219,-151.0,0.00019228,2]
[394155467,1763331032228,-151.0,0.00019228,2]
[394155469,1763331032239,-151.0,0.00019228,2]
[394155471,1763331032248,-151.0,0.00019228,2]
[394155473,1763331032257,-151.0,0.00019228,2]
[394155475,1763331032266,-151.0,0.00019228,2]
[394155477,1763331032275,-151.0,0.00019228,2]
[394155479,1763331032284,-151.0,0.00019228,2]
[394155480,1763331032293,-151.0,0.00019228,2]
[394155482,1763331032303,-151.0,0.00019228,2]
[394155484,1763331032312,-151.0,0.00019228,2]
[394155486,1763331032321,-151.0,0.00019228,2]
[394155487,1763331032331,-151.0,0.00019228,2]
[394155489,1763331032340,-151.0,0.00019228,2]
[394155491,1763331032349,-151.0,0.00019228,2]
[394155493,1763331032359,-151.0,0.00019228,2]
[394155495,1763331032368,-151.0,0.00019228,2]
[394155497,1763331032377,-151.0,0.00019228,2]
[394155498,1763331032385,-151.0,0.00019228,2]
[394155500,1763331032394,-151.0,0.00019228,2]
[394155502,1763331032404,-151.0,0.00019228,2]
[394155504,1763331032414,-151.0,0.00019228,2]
[394155505,1763331032423,-151.0,0.00019228,2]
[394155507,1763331032433,-151.0,0.00019228,2]
[394155509,1763331032443,-151.0,0.00019228,2]
[394155511,1763331032452,-151.0,0.00019228,2]
[394155513,1763331032461,-151.0,0.00019228,2]
[394155515,1763331032470,-500.0,0.00019238,2]
[394155517,1763331032480,-500.0,0.00019238,2]
[394155518,1763331032489,-500.0,0.00019238,2]
[394155520,1763331032499,-199.85554521,0.00019239,2]
[394155522,1763331032508,-207.72846533,0.00019239,2]
[394155524,1763331032520,-513.02,0.00019243,2]
[394155526,1763331032530,-500.0,0.00019273,2]
[394155528,1763331032538,-500.0,0.00019273,2]
[394155530,1763331032547,-500.0,0.00019273,2]
[394155531,1763331032556,-500.0,0.00019273,2]
[394155533,1763331032565,-500.0,0.00019273,2]
[394155535,1763331032574,-500.0,0.000193,2]
[394155537,1763331032584,-500.88609333,0.000193,2]
[394155539,1763331032593,-500.0,0.000193,2]
[394155540,1763331032603,-500.0,0.000193,2]
[394155542,1763331032612,-175.88462383,0.000193,2]
[394155544,1763331032621,-500.0,0.000193,2]
[394155546,1763331032631,-500.0,0.000193,2]
[394155548,1763331032640,-501.76439475,0.000193,2]
[394155550,1763331032649,-500.0,0.000193,2]
[394155552,1763331032661,-540.61,0.00019423,2]
[394155554,1763331032670,-540.65,0.00019697,2]
[394155555,1763331032679,-1004.10346457,0.00019821,2]
[394155557,1763331032688,-1000.0,0.00019821,2]
[394155559,1763331032697,-1000.0,0.00019848,2]
[394155561,1763331032706,-206.06883013,0.00019848,2]
[394155563,1763331032717,-1010.75841668,0.00019848,2]
[394155564,1763331032726,-184.79730938,0.00019848,2]
[394155566,1763331032735,-513.02,0.00019884,2]
[394155568,1763331032744,-420.0,0.00019917,2]
[394155570,1763331032753,-420.0,0.00019917,2]
[394155572,1763331032763,-1680.0,0.00019918,2]
[394155574,1763331032771,-500.0,0.00019973,2]
[394155576,1763331032781,-500.0,0.00019973,2]
[394155577,1763331032790,-500.0,0.00019973,2]
[394155579,1763331032799,-500.0,0.00019973,2]
[394155581,1763331032809,-500.0,0.00019973,2]
[394155583,1763331032818,-482.23406646,0.00019973,2]
[394155585,1763331032828,-500.0,0.00019973,2]
[394155587,1763331032837,-500.0,0.00019973,2]
[394155589,1763331032846,-500.0,0.00019973,2]
[394155591,1763331032856,-504.92270785,0.00019973,2]
[394155592,1763331032866,-638.7613927,0.00019973,2]
[394155594,1763331032875,-167.64757499,0.00019973,2]
[394155596,1763331032885,-504.48907422,0.00019973,2]
[394155598,1763331032894,-500.0,0.00019973,2]
[394155600,1763331032904,-500.0,0.00019973,2]
[394155602,1763331032912,-161.11910975,0.00019973,2]
[394155603,1763331032921,-500.0,0.00019973,2]
[394155605,1763331032931,-500.0,0.00019973,2]
[394155607,1763331032941,-500.0,0.00019973,2]
[394155609,1763331032950,-500.0,0.00019973,2]
[394155611,1763331032960,-64892.03068477,0.0002,2]
[394155612,1763331032969,-1680.0,0.00020015,2]
[394155614,1763331032979,-2717.25698963,0.00020085,4]
[394155616,1763331032988,-150.15956751,0.00020085,2]
[394155618,1763331032998,-193.70507279,0.00020086,2]
[394155620,1763331033008,-250.0,0.00020086,2]
[394155622,1763331033020,-300.0,0.00020086,2]
[394155624,1763331033030,-250.0,0.00020086,2]
[394155626,1763331033039,-2500.0,0.00020086,2]
[394155628,1763331033049,-300.0,0.00020086,2]
[394155630,1763331033058,-548.0,0.00020187,2]
[394155632,1763331033067,-1500.0,0.00020368,2]
[394155634,1763331033077,-1000.0,0.00020521,2]
[394155635,1763331033086,-1000.0,0.00020521,2]
[394155637,1763331033096,-1000.0,0.00020521,2]
[394155639,1763331033105,-1097.05199518,0.00020521,2]
[394155641,1763331033115,-196.23949712,0.00020521,2]
[394155643,1763331033124,-646.53878068,0.00020521,2]
[394155645,1763331033134,-569.5879799,0.00020521,2]
[394155646,1763331033143,-1016.23614884,0.00020521,2]
[394155648,1763331033157,-1000.0,0.00020521,2]
[394155650,1763331033166,-500.0,0.00020521,2]
[394155652,1763331033175,-513.02,0.00020526,2]
[394155654,1763331033185,-1000.0,0.00020739,2]
[394155656,1763331033195,-2000.0,0.00020916,2]
[394155658,1763331033204,-1500.0,0.00021068,2]
[394155660,1763331033214,-998.95764127,0.00021068,2]
[394155662,1763331033223,-1500.0,0.00021068,2]
[394155664,1763331033234,-1524.46659852,0.00021068,2]
[394155666,1763331033244,-513.02,0.00021167,2]
[394155667,1763331033253,-2567.3649767,0.00021464,2]
[394155669,1763331033262,-1000.0,0.00021517,2]
[394155671,1763331033271,-1151.05743443,0.00021517,2]
[394155673,1763331033280,-500.0,0.00021605,2]
[394155675,1763331033290,-500.0,0.00021605,2]
[394155677,1763331033299,-1511.15728716,0.00021616,2]
[394155679,1763331033308,-2000.0,0.00021616,2]
[394155681,1763331033318,-483.0,0.00021726,2]
[394155683,1763331033327,-393.0,0.00021726,2]
[394155685,1763331033336,-1132.0,0.00021727,2]
[394155686,1763331033345,-513.02,0.00021808,2]
[394155688,1763331033354,-5000.0,0.00021918,2]
[394155690,1763331033363,-2351.0,0.0002194,2]
[394155692,1763331033372,-2140.6446686,0.00022164,2]
[394155694,1763331033382,-1000.0,0.00022294,2]
[394155696,1763331033390,-513.02,0.0002245,2]
[394155698,1763331033400,-454.67,0.00022562,2]
[394155700,1763331033410,-600.0,0.00022648,2]
[394155701,1763331033419,-212.86,0.00022648,2]
[394155703,1763331033428,-1000.0,0.00023072,2]
[394155705,1763331033437,-513.02,0.00023091,2]
[394155707,1763331033447,-859.56572467,0.00023133,2]
[394155709,1763331033456,-479.06402154,0.00023148,2]
[394155711,1763331033465,-500.0,0.00023233,2]
[394155713,1763331033475,-500.0,0.000233,2]
[394155715,1763331033484,-331.39175413,0.00023467,2]
[394155717,1763331033494,-500.0,0.00023467,2]
[394155719,1763331033503,-513.02,0.00023733,2]
[394155721,1763331033512,-1000.0,0.00023781,2]
[394155723,1763331033521,-1000.0,0.0002385,2]
[394155724,1763331033531,-1151.05743443,0.00023995,2]
[394155726,1763331033540,-658.15142435,0.00024015,2]
[394155728,1763331033550,-3292.0,0.00024049,2]
[394155729,1763331033559,-5161.38880344,0.00024229,2]
[394155730,1763331033569,-1011.09724673,0.00024329,2]
[394155731,1763331033578,-513.02,0.00024374,2]
[394155732,1763331033587,-198.11,0.00024658,2]
[394155733,1763331033597,-500.0,0.00024773,2]
[394155734,1763331033607,-500.0,0.00024773,2]
[394155735,1763331033618,-500.0,0.00024773,2]
[394155736,1763331033628,-500.0,0.00024773,2]
[394155737,1763331033638,-258.78366937,0.00024773,2]
[394155738,1763331033647,-500.0,0.00024773,2]
[394155739,1763331033657,-500.0,0.00024773,2]
[394155740,1763331033666,-500.0,0.00024773,2]
[394155742,1763331033676,-500.0,0.00024773,2]
[394155744,1763331033685,-500.0,0.00024773,2]
[394155746,1763331033695,-500.0,0.00024773,2]
[394155748,1763331033705,-162.72494429,0.00024773,2]
[394155750,1763331033715,-500.0,0.00024773,2]
[394155752,1763331033725,-500.0,0.00024773,2]